bitfinex-derivatives/quotes_SOLF0:USTF0_20251026
["timestamp","ask_amount","ask_price","bid_price","bid_amount"]
[1761516945304,2.64,200.01,199.91,2.86]
[1761516945607,2.64,200.05,199.91,2.86]
[1761516945919,2.64,200.05,199.96,4.5006]
[1761516946203,3.42398023,200.09,199.97,2.86]
[1761516946402,2.64,200.08,199.97,2.86]
[1761516946909,2.64,200.08,199.94,2.86]
[1761516947299,2.64,200.08,199.95,4.5008]
[1761516947502,2.64,200.08,199.96,2.86]
[1761516948599,3.42398023,200.05,199.91,2.86]
[1761516948902,2.64,200.04,199.91,2.86]
[1761516949312,2.64,200.04,199.91,7.3615]
[1761516949701,2.64,200.04,199.91,2.86]
[1761516951803,2.64,200.04,199.92,2.86]
[1761516954107,2.64,200.09,199.92,2.86]
[1761516954906,2.64,200.09,199.93,2.86]
[1761516956318,2.64,200.08,199.93,2.86]
[1761516960510,2.64,200.08,199.94,2.86]
[1761516960919,0.87020667,200.15,199.98,2.86]
[1761516961111,2.64,200.14,200.01,2.86]
[1761516961314,2.64,200.12,200.01,2.86]
[1761516967223,2.64,200.12,199.93,3.42398023]
[1761516967224,3.42398023,200.09,199.96,2.76]
[1761516967519,2.64,200.12,199.96,2.76]
[1761516968120,2.64,200.12,199.99,4.4997]
[1761516968316,2.64,200.12,200.0,2.76]
[1761516970613,2.77,200.09,199.95,2.62]
[1761516971618,3.42398023,200.06,199.95,2.62]
[1761516971817,2.77,200.05,199.95,2.62]
[1761516973037,2.77,200.05,199.91,2.62]
[1761516973224,2.77,200.05,199.91,7.1215]
[1761516973524,2.77,200.05,199.91,2.62]
[1761516973721,2.77,200.01,199.91,2.62]
[1761516974420,2.77,200.05,199.91,2.62]
[1761516974820,2.77,200.05,199.94,4.501]
[1761516975024,2.77,200.05,199.95,2.62]
[1761516975329,2.77,200.05,199.87,3.42398023]
[1761516975330,2.77,200.03,199.89,2.62]
[1761516976423,2.77,200.03,199.89,4.5022]
[1761516976630,2.77,200.03,199.9,2.62]
[1761516978626,3.42398023,200.0,199.85,2.62]
[1761516978822,2.77,199.99,199.85,2.62]
[1761516979235,2.77,199.99,199.83,3.42398023]
[1761516979236,2.77,199.99,199.87,2.62]
[1761516979724,2.77,199.99,199.88,2.62]
[1761516980317,3.42398023,200.03,199.88,2.62]
[1761516980517,3.42398023,200.03,199.83,3.42398023]
[1761516980518,2.77,200.02,199.9,2.62]
[1761516981018,2.77,200.02,199.91,4.5017]
[1761516981220,3.42398023,200.06,199.92,2.62]
[1761516981221,6.19398023,200.06,199.92,2.62]
[1761516981425,6.17083872,200.1,199.92,2.62]
[1761516981621,2.77,200.09,199.92,2.62]
[1761516982026,2.77,200.09,199.96,2.62]
[1761516983934,2.77,200.09,199.9,2.62]
[1761516984930,2.77,200.09,199.91,2.62]
[1761516985538,2.77,200.09,199.93,2.62]
[1761516987030,2.77,200.09,199.94,7.121]
[1761516987238,2.77,200.09,199.9,5.78911006]
[1761516987239,2.77,200.09,199.95,2.62]
[1761516987930,2.77,200.09,199.96,2.62]
[1761516989331,17.8,200.09,199.96,2.62]
[1761516989537,2.77,200.07,199.96,2.62]
[1761516992547,2.77,200.07,199.92,7.1213]
[1761516992741,2.77,200.07,199.93,2.62]
[1761516994146,15.03,200.06,199.93,2.62]
[1761516994441,15.03,200.06,199.9,4.5019]
[1761516994442,2.77,200.05,199.91,2.62]
[1761516995245,2.77,200.05,199.93,2.62]
[1761516995840,2.77,200.05,199.94,2.62]
[1761516996141,70.2,200.09,199.94,2.62]
[1761516996341,72.97,200.09,199.94,2.62]
[1761516997046,72.97,200.09,199.96,2.62]
[1761516998552,2.77,200.08,199.97,2.62]
[1761516999343,6.17083872,200.13,199.99,2.78]
[1761516999344,2.61,200.11,199.99,2.78]
[1761517002650,2.61,200.1,199.94,7.281]
[1761517002841,2.61,200.1,199.95,2.78]
[1761517003646,2.61,200.09,199.95,2.78]
[1761517004046,15.03,200.09,199.95,2.78]
[1761517004252,2.61,200.08,199.95,2.78]
[1761517005853,2.61,200.08,199.93,4.5011]
[1761517005854,2.61,200.07,199.93,4.5011]
[1761517006056,2.61,200.07,199.93,7.2811]
[1761517006252,2.61,200.05,199.93,2.78]
[1761517012755,2.61,200.05,199.93,7.2811]
[1761517012952,2.61,200.05,199.94,2.78]
[1761517016459,2.61,200.05,199.95,2.78]
[1761517021466,2.61,200.04,199.88,4.53890111]
[1761517021769,2.61,200.02,199.88,2.78]
[1761517022163,2.61,200.01,199.88,2.78]
[1761517023164,15.03,200.02,199.83,5.52092735]
[1761517023165,2.66,199.99,199.84,2.7]
[1761517023359,2.66,199.98,199.84,2.7]
[1761517023560,17.69,199.96,199.84,2.7]
[1761517023766,2.66,199.95,199.84,2.7]
[1761517024160,15.03,199.96,199.84,2.7]
[1761517024161,6.91431121,199.94,199.84,2.7]
[1761517024367,4.25431121,199.93,199.84,2.7]
[1761517024565,4.25431121,199.92,199.84,2.7]
[1761517024768,2.66,199.9,199.8,2.7]
[1761517024963,6.91431121,199.9,199.8,2.7]
[1761517025164,4.25431121,199.89,199.8,2.7]
[1761517025366,4.25431121,199.88,199.81,2.7]
[1761517025565,4.25431121,199.87,199.81,2.7]
[1761517025773,4.25431121,199.86,199.81,2.7]
[1761517025976,4.25431121,199.85,199.81,2.7]
[1761517026268,4.25431121,199.89,199.81,2.7]
[1761517026467,2.66,199.93,199.84,2.7]
[1761517026772,6.91431121,199.92,199.84,2.7]
[1761517027072,4.25431121,199.91,199.84,2.7]
[1761517027263,6.91431121,199.95,199.84,2.7]
[1761517027461,4.25431121,199.94,199.85,2.7]
[1761517027664,2.66,199.95,199.85,2.7]
[1761517027665,4.25431121,199.93,199.85,2.7]
[1761517027864,4.25431121,199.94,199.85,2.7]
[1761517028065,4.25431121,199.93,199.85,2.7]
[1761517028271,4.25431121,199.94,199.85,2.7]
[1761517028471,2.66,199.99,199.86,2.7]
[1761517028773,4.25431121,199.98,199.86,2.7]
[1761517028970,4.25431121,199.97,199.86,2.7]
[1761517029170,4.25431121,199.96,199.86,2.7]
[1761517029367,4.25431121,199.95,199.88,2.74]
[1761517029574,4.25431121,199.98,199.88,2.74]
[1761517029776,4.25431121,199.97,199.88,2.74]
[1761517029967,4.25431121,199.96,199.88,2.74]
[1761517030166,4.25431121,199.98,199.88,2.74]
[1761517030367,7.02431121,199.98,199.88,2.74]
[1761517030566,4.25431121,199.97,199.88,2.74]
[1761517030880,2.77,199.96,199.82,2.74]
[1761517031064,2.77,199.95,199.82,2.74]
[1761517031272,2.77,199.94,199.82,2.74]
[1761517031466,2.77,199.93,199.82,2.74]
[1761517031969,2.77,199.93,199.85,2.74]
[1761517033375,4.25431121,199.93,199.87,2.74]
[1761517033578,4.25431121,199.97,199.87,2.74]
[1761517033782,2.77,199.98,199.87,2.74]
[1761517033978,2.77,199.98,199.89,2.74]
[1761517034376,4.25431121,200.0,199.89,2.74]
[1761517034574,4.25431121,200.02,199.89,2.74]
[1761517034780,4.25431121,200.02,199.91,2.74]
[1761517035369,2.77,200.0,199.91,2.74]
[1761517035574,7.02431121,200.0,199.91,2.74]
[1761517035869,4.25431121,199.99,199.91,2.74]
[1761517036071,2.77,200.0,199.92,2.74]
[1761517037376,7.02431121,200.0,199.92,2.74]
[1761517037582,7.02431121,199.99,199.92,2.74]
[1761517037784,4.25431121,199.98,199.92,2.74]
[1761517037982,2.77,199.99,199.92,2.74]
[1761517039889,2.77,200.01,199.92,2.74]
[1761517040075,4.25431121,200.0,199.92,2.74]
[1761517040386,7.02431121,200.0,199.92,2.74]
[1761517040581,4.25431121,199.99,199.92,2.74]
[1761517040779,2.77,200.0,199.92,2.74]
[1761517040983,2.77,199.98,199.88,7.2423]
[1761517041179,2.77,199.97,199.88,2.74]
[1761517041389,2.77,199.95,199.88,2.74]
[1761517041585,7.02431121,199.95,199.88,2.74]
[1761517041785,4.25431121,199.94,199.88,2.74]
[1761517042388,2.77,199.93,199.85,4.503]
[1761517042587,7.02431121,199.93,199.85,4.503]
[1761517042788,4.25431121,199.92,199.85,4.503]
[1761517042989,2.77,199.93,199.85,4.503]
[1761517043392,2.77,199.93,199.82,7.2436]
[1761517043690,2.77,199.93,199.82,2.74]
[1761517043888,2.77,199.93,199.84,2.74]
[1761517044283,7.11034122,199.93,199.84,2.74]
[1761517044484,4.34034122,199.92,199.84,2.74]
[1761517044890,2.77,199.94,199.84,2.74]
[1761517045091,4.34034122,199.93,199.84,2.74]
[1761517045390,2.77,199.93,199.84,2.74]
[1761517046292,7.11034122,199.92,199.84,2.74]
[1761517046489,4.34034122,199.91,199.84,2.74]
[1761517046687,7.11034122,199.91,199.84,2.74]
[1761517046886,4.34034122,199.9,199.84,2.74]
[1761517047197,2.77,199.91,199.84,2.74]
[1761517047690,3.42805571,199.91,199.8,2.74]
[1761517047992,2.77,199.85,199.75,2.74]
[1761517048190,2.77,199.84,199.75,2.74]
[1761517049691,2.77,199.84,199.76,7.2451]
[1761517051993,2.77,199.84,199.73,7.2457]
[1761517052392,2.77,199.84,199.74,2.74]
[1761517052986,2.77,199.84,199.75,2.74]
[1761517054703,7.11034122,199.84,199.75,2.74]
[1761517054895,4.34034122,199.83,199.75,4.5052]
[1761517055093,2.77,199.84,199.76,2.74]
[1761517055700,7.11034122,199.84,199.77,7.2449]
[1761517055899,4.34034122,199.83,199.77,7.2449]
[1761517056198,2.77,199.84,199.77,7.2449]
[1761517057093,2.77,199.84,199.77,2.74]
[1761517060004,2.8,199.83,199.68,2.81]
[1761517060296,2.8,199.82,199.7,7.3163]
[1761517060502,2.8,199.82,199.71,2.81]
[1761517061105,2.8,199.82,199.73,4.5058]
[1761517061298,2.8,199.82,199.73,2.81]
[1761517063308,2.8,199.81,199.73,2.81]
[1761517063508,2.8,199.8,199.73,2.81]
[1761517064410,2.8,199.8,199.68,2.81]
[1761517064902,2.8,199.79,199.64,2.81]
[1761517065102,2.8,199.78,199.64,2.81]
[1761517066001,2.8,199.75,199.64,2.81]
[1761517066201,2.8,199.74,199.64,2.81]
[1761517066401,2.8,199.73,199.64,2.81]
[1761517066911,2.8,199.71,199.55,2.81]
[1761517067210,2.8,199.7,199.55,2.81]
[1761517067607,2.8,199.7,199.58,2.81]
[1761517068108,2.8,199.7,199.59,2.81]
[1761517069505,2.8,199.7,199.57,4.5092]
[1761517069900,2.8,199.7,199.51,3.42805571]
[1761517069901,4.34034122,199.71,199.62,2.81]
[1761517070099,2.8,199.72,199.62,2.81]
[1761517070306,2.8,199.71,199.53,2.81]
[1761517070706,2.8,199.71,199.58,2.81]
[1761517071213,2.8,199.68,199.58,2.81]
[1761517071504,2.8,199.67,199.58,2.81]
[1761517073711,2.8,199.67,199.54,7.3199]
[1761517074506,2.8,199.67,199.56,7.3197]
[1761517075008,2.8,199.66,199.56,7.3197]
[1761517075210,2.8,199.65,199.56,7.3197]
[1761517076106,2.8,199.65,199.56,2.81]
[1761517076298,2.8,199.65,199.53,4.5102]
[1761517076505,2.8,199.62,199.53,4.5102]
[1761517076704,2.8,199.61,199.53,7.3202]
[1761517077008,2.8,199.6,199.53,2.81]
[1761517077506,2.8,199.6,199.44,3.42805571]
[1761517077507,2.8,199.6,199.49,2.81]
[1761517077709,2.8,199.67,199.5,2.81]
[1761517077906,3.42805571,199.71,199.5,2.81]
[1761517078110,7.689965,199.71,199.5,2.81]
[1761517078311,7.689965,199.71,199.54,2.81]
[1761517078312,10.489965,199.71,199.54,2.81]
[1761517078505,4.26190929,199.7,199.54,2.81]
[1761517078910,2.8,199.69,199.6,2.81]
[1761517079213,2.8,199.69,199.5,2.81]
[1761517080314,2.8,199.68,199.55,7.3199]
[1761517080623,2.8,199.68,199.56,2.81]
[1761517081108,2.8,199.68,199.57,4.5094]
[1761517081314,2.8,199.68,199.57,7.3194]
[1761517081507,2.8,199.67,199.57,7.3194]
[1761517081908,2.8,199.67,199.57,4.5094]
[1761517082108,2.8,199.67,199.58,2.81]
[1761517082618,4.26098701,199.7,199.6,2.81]
[1761517082910,7.06098701,199.7,199.6,2.81]
[1761517083114,4.26098701,199.69,199.6,2.81]
[1761517083315,6.95098701,199.69,199.6,2.81]
[1761517083512,4.26098701,199.68,199.6,2.81]
[1761517083821,2.69,199.68,199.6,2.81]
[1761517085912,6.95098701,199.74,199.61,2.6]
[1761517086119,2.69,199.73,199.61,2.6]
[1761517087019,2.69,199.73,199.63,2.6]
[1761517088021,2.69,199.7,199.53,2.6]
[1761517088313,2.69,199.69,199.53,2.6]
[1761517088518,2.69,199.69,199.51,2.6]
[1761517089020,2.69,199.69,199.56,4.5097]
[1761517089214,6.95098701,199.69,199.57,2.63]
[1761517089422,3.42805571,199.71,199.57,2.63]
[1761517089423,2.68,199.67,199.57,2.63]
[1761517089718,6.94098701,199.67,199.58,2.63]
[1761517089919,4.26098701,199.66,199.58,2.63]
[1761517090120,2.68,199.67,199.58,2.63]
[1761517090418,4.26098701,199.69,199.59,2.63]
[1761517090614,4.26098701,199.71,199.59,2.63]
[1761517090815,2.68,199.71,199.59,2.63]
[1761517091014,2.68,199.71,199.54,3.42805571]
[1761517091015,4.26098701,199.73,199.6,2.63]
[1761517091215,7.68904272,199.75,199.6,2.63]
[1761517091411,10.36904272,199.75,199.6,2.63]
[1761517091728,2.68,199.73,199.63,2.63]
[1761517092114,4.26098701,199.74,199.63,2.63]
[1761517092416,4.26098701,199.74,199.66,7.1372]
[1761517092617,3.42805571,199.75,199.66,7.1372]
[1761517093423,7.68904272,199.75,199.66,7.1372]
[1761517093612,4.26098701,199.74,199.66,7.1372]
[1761517094320,2.68,199.73,199.66,2.63]
[1761517095017,6.94098701,199.73,199.66,2.63]
[1761517095223,4.26098701,199.72,199.66,2.63]
[1761517095515,6.94098701,199.75,199.66,2.63]
[1761517095735,2.68,199.73,199.64,4.5079]
[1761517095916,2.68,199.72,199.64,4.5079]
[1761517096111,6.94098701,199.72,199.64,4.5079]
[1761517096317,4.26098701,199.71,199.64,4.5079]
[1761517096518,2.68,199.72,199.64,4.5079]
[1761517096718,2.68,199.72,199.64,7.1379]
[1761517097222,6.94098701,199.72,199.64,7.1379]
[1761517097422,2.68,199.7,199.59,2.63]
[1761517098916,4.26098701,199.71,199.63,2.63]
[1761517099221,4.26098701,199.73,199.63,2.63]
[1761517099419,4.26098701,199.8,199.71,2.63]
[1761517100522,6.94098701,199.8,199.71,2.63]
[1761517100727,4.26098701,199.79,199.71,2.63]
[1761517100912,2.68,199.8,199.71,2.63]
[1761517101318,4.26098701,199.81,199.72,2.63]
[1761517101525,4.26098701,199.8,199.72,2.63]
[1761517101824,2.68,199.82,199.72,7.1358]
[1761517102026,6.94098701,199.81,199.72,7.1358]
[1761517102222,6.94098701,199.8,199.72,7.1358]
[1761517102414,4.26098701,199.79,199.72,7.1358]
[1761517102613,4.26098701,199.79,199.72,2.63]
[1761517102925,4.26098701,199.78,199.72,2.63]
[1761517103114,4.26098701,199.79,199.72,2.63]
[1761517103312,4.26098701,199.78,199.72,2.63]
[1761517103523,4.26098701,199.79,199.72,2.63]
[1761517103723,4.26098701,199.78,199.72,2.63]
[1761517104025,2.68,199.8,199.72,2.63]
[1761517104026,4.26098701,199.79,199.72,2.63]
[1761517104422,6.94098701,199.83,199.72,2.63]
[1761517104618,2.68,199.81,199.72,2.63]
[1761517104821,2.68,199.79,199.72,2.63]
[1761517105125,6.94098701,199.79,199.72,2.63]
[1761517105329,3.42805571,199.84,199.67,4.5072]
[1761517105330,2.68,199.77,199.67,4.5072]
[1761517105625,2.68,199.76,199.67,4.5072]
[1761517105823,6.94098701,199.76,199.67,4.5072]
[1761517106029,2.68,199.74,199.66,2.63]
[1761517106328,6.94098701,199.74,199.66,2.63]
[1761517106524,4.26098701,199.73,199.66,2.63]
[1761517106924,6.94098701,199.73,199.66,2.63]
[1761517107128,4.26098701,199.72,199.66,2.63]
[1761517107328,2.68,199.73,199.66,2.63]
[1761517107519,2.68,199.72,199.62,2.63]
[1761517107718,2.68,199.7,199.62,2.63]
[1761517107930,6.94098701,199.7,199.62,2.63]
[1761517108153,4.26098701,199.69,199.62,7.1381]
[1761517108325,2.68,199.7,199.62,7.1381]
[1761517108528,2.68,199.7,199.62,2.63]
[1761517108722,2.68,199.68,199.59,4.5088]
[1761517108918,2.68,199.68,199.58,2.63]
[1761517108919,2.68,199.67,199.58,2.63]
[1761517109123,6.94098701,199.67,199.58,2.63]
[1761517109323,4.26098701,199.66,199.58,2.63]
[1761517109519,2.68,199.67,199.58,2.63]
[1761517110524,6.94098701,199.67,199.58,2.63]
[1761517110729,2.68,199.65,199.51,2.63]
[1761517110929,2.68,199.64,199.51,2.63]
[1761517111130,2.68,199.63,199.51,2.63]
[1761517111331,2.68,199.63,199.47,4.51897844]
[1761517111332,6.94098701,199.63,199.53,7.1402]
[1761517111530,4.26098701,199.62,199.54,2.63]
[1761517111736,2.68,199.63,199.54,2.63]
[1761517113634,2.68,199.63,199.55,7.1399]
[1761517116242,6.94098701,199.63,199.55,7.1399]
[1761517116433,4.26098701,199.62,199.55,7.1399]
[1761517117347,4.26098701,199.62,199.55,2.63]
[1761517117548,2.68,199.63,199.55,2.63]
[1761517118140,6.94098701,199.63,199.55,2.63]
[1761517118342,4.26098701,199.62,199.55,2.63]
[1761517118549,2.68,199.63,199.55,2.63]
[1761517120147,6.94098701,199.63,199.55,2.63]
[1761517120449,7.06098701,199.62,199.55,2.63]
[1761517120657,4.26098701,199.61,199.55,2.63]
[1761517120840,2.8,199.62,199.55,2.63]
[1761517121451,7.06098701,199.65,199.55,2.63]
[1761517121648,2.8,199.64,199.55,2.63]
[1761517125755,2.8,199.64,199.58,4.5092]
[1761517126852,2.8,199.64,199.58,7.1492]
[1761517127251,4.26098701,199.65,199.59,2.64]
[1761517127754,4.26098701,199.67,199.59,2.64]
[1761517128253,2.8,199.66,199.59,2.64]
[1761517128455,7.06098701,199.66,199.59,2.64]
[1761517128750,4.26098701,199.65,199.59,2.64]
[1761517128950,2.8,199.66,199.59,2.64]
[1761517129946,4.26098701,199.69,199.6,2.64]
[1761517130146,2.8,199.69,199.6,2.64]
[1761517130345,7.06098701,199.69,199.6,4.5086]
[1761517130549,4.26098701,199.68,199.61,2.64]
[1761517130849,2.8,199.67,199.58,4.5092]
[1761517131048,2.8,199.66,199.58,4.5092]
[1761517131852,2.8,199.66,199.57,2.64]
[1761517132050,5.80695127,199.66,199.55,4.5097]
[1761517132251,2.8,199.64,199.53,2.64]
[1761517133648,2.8,199.64,199.46,2.64]
[1761517134553,2.8,199.64,199.55,2.64]
[1761517135048,4.26098701,199.65,199.55,2.64]
[1761517135956,4.26098701,199.65,199.56,4.5095]
[1761517136154,4.26098701,199.65,199.56,2.64]
[1761517136452,2.8,199.64,199.56,2.64]
[1761517137060,2.8,199.64,199.52,2.64]
[1761517137862,2.8,199.64,199.54,2.64]
[1761517138058,2.8,199.64,199.51,2.64]
[1761517138259,4.26098701,199.64,199.52,2.64]
[1761517138465,2.8,199.63,199.52,2.64]
[1761517138954,4.26098701,199.65,199.52,2.64]
[1761517139154,2.8,199.62,199.52,2.64]
[1761517139355,2.8,199.62,199.53,2.64]
[1761517139663,2.8,199.61,199.53,2.64]
[1761517139850,2.8,199.6,199.53,2.64]
[1761517140055,7.06098701,199.6,199.53,2.64]
[1761517140259,4.26098701,199.59,199.53,2.64]
[1761517140454,4.26098701,199.64,199.53,2.64]
[1761517140662,2.8,199.62,199.49,2.64]
[1761517140962,2.8,199.61,199.49,2.64]
[1761517141159,2.8,199.6,199.49,2.64]
[1761517141764,2.8,199.6,199.51,2.64]
[1761517143656,7.06098701,199.6,199.51,2.64]
[1761517143864,4.26098701,199.59,199.53,2.82]
[1761517144062,2.8,199.6,199.53,2.82]
[1761517144668,4.26098701,199.62,199.54,2.82]
[1761517144868,2.63,199.63,199.44,2.82]
[1761517145061,2.63,199.62,199.49,2.82]
[1761517145259,2.63,199.59,199.49,2.82]
[1761517145560,2.63,199.58,199.42,2.82]
[1761517145761,2.63,199.54,199.42,2.82]
[1761517145962,6.89098701,199.54,199.42,2.82]
[1761517146161,2.63,199.52,199.42,2.82]
[1761517146555,2.63,199.52,199.43,2.82]
[1761517147462,2.63,199.52,199.39,2.82]
[1761517148256,2.63,199.52,199.41,4.5131]
[1761517148459,6.89098701,199.52,199.42,2.82]
[1761517148668,4.26098701,199.51,199.42,2.82]
[1761517148863,2.61,199.51,199.42,2.82]
[1761517149167,2.61,199.51,199.43,4.5126]
[1761517149364,2.61,199.51,199.43,7.2526]
[1761517149568,6.87098701,199.51,199.43,7.2526]
[1761517149761,4.26098701,199.5,199.43,7.2526]
[1761517149963,4.26098701,199.5,199.43,2.74]
[1761517150269,2.61,199.5,199.43,2.74]
[1761517152663,2.61,199.5,199.4,4.5131]
[1761517152858,2.61,199.49,199.4,4.5131]
[1761517153168,2.61,199.49,199.4,7.2531]
[1761517154571,2.61,199.49,199.4,2.74]
[1761517155065,2.61,199.49,199.36,2.74]
[1761517155268,2.61,199.48,199.36,2.74]
[1761517155464,4.26098701,199.49,199.36,2.74]
[1761517155670,6.87098701,199.51,199.41,2.74]
[1761517155968,2.61,199.49,199.41,2.74]
[1761517156175,6.87098701,199.49,199.41,2.74]
[1761517156373,6.87098701,199.48,199.41,2.74]
[1761517156575,4.26098701,199.47,199.41,2.74]
[1761517156766,2.61,199.46,199.37,2.74]
[1761517156966,2.61,199.46,199.31,2.74]
[1761517157375,2.61,199.46,199.35,4.5144]
[1761517157674,2.61,199.46,199.31,2.74]
[1761517157876,2.61,199.44,199.31,2.74]
[1761517158077,2.61,199.43,199.33,2.74]
[1761517159362,2.61,199.43,199.33,7.2549]
[1761517161178,2.61,199.43,199.33,2.74]
[1761517162972,2.61,199.43,199.34,4.5146]
[1761517163368,2.61,199.43,199.24,2.74]
[1761517163574,5.80695127,199.5,199.39,2.74]
[1761517163772,4.29413544,199.49,199.39,2.74]
[1761517164076,2.61,199.48,199.39,2.74]
[1761517164674,2.61,199.48,199.35,2.74]
[1761517167781,2.61,199.42,199.35,2.74]
[1761517167978,6.90413544,199.42,199.35,2.74]
[1761517168184,4.29413544,199.41,199.35,2.74]
[1761517168370,6.90413544,199.42,199.35,2.74]
[1761517168974,2.61,199.41,199.35,2.74]
[1761517170079,2.61,199.41,199.33,4.5147]
[1761517171381,2.61,199.38,199.21,2.74]
[1761517171681,2.61,199.37,199.21,2.74]
[1761517171881,2.61,199.36,199.21,2.74]
[1761517172379,2.61,199.36,199.26,2.74]
[1761517172881,2.61,199.36,199.28,2.74]
[1761517173678,2.61,199.36,199.28,4.5158]
[1761517173880,4.29413544,199.38,199.29,2.74]
[1761517174194,1.42413544,199.38,199.29,2.74]
[1761517174481,6.05553886,199.52,199.38,1.94]
[1761517174688,2.61,199.51,199.38,1.94]
[1761517174984,2.61,199.51,199.41,1.94]
[1761517175279,2.61,199.47,199.37,1.94]
[1761517175477,2.61,199.47,199.37,4.5138]
[1761517175676,2.61,199.47,199.38,1.94]
[1761517181806,2.79,199.49,199.39,1.95]
[1761517188298,2.79,199.49,199.35,6.4643]
[1761517188499,2.79,199.49,199.36,1.95]
[1761517189596,2.79,199.45,199.32,6.4649]
[1761517190304,2.79,199.45,199.25,12.47863886]
[1761517190305,2.79,199.45,199.33,6.4647]
[1761517190506,2.79,199.45,199.34,1.95]
[1761517190808,2.79,199.45,199.34,6.4644]
[1761517195310,2.79,199.41,199.32,1.95]
[1761517195810,2.79,199.41,199.28,6.4658]
[1761517196113,2.79,199.37,199.28,6.4658]
[1761517197515,2.79,199.37,199.26,4.5164]
[1761517199109,2.79,199.37,199.24,6.4669]
[1761517199310,2.79,199.37,199.25,1.95]
[1761517200306,3.44553886,199.34,199.25,1.95]
[1761517200516,2.79,199.29,199.19,1.95]
[1761517201022,3.44553886,199.32,199.19,1.95]
[1761517201215,2.79,199.32,199.19,1.95]
[1761517201413,6.23553886,199.36,199.25,4.5165]
[1761517201718,2.79,199.36,199.26,1.95]
[1761517202116,2.79,199.36,199.28,1.95]
[1761517202317,2.79,199.4,199.28,1.95]
[1761517202720,2.79,199.37,199.28,1.95]
[1761517203216,2.79,199.37,199.24,1.95]
[1761517203418,2.64,199.36,199.24,1.95]
[1761517204815,2.64,199.4,199.24,1.95]
[1761517205011,2.64,199.4,199.26,1.95]
[1761517205917,2.64,199.31,199.21,1.95]
[1761517207231,3.44553886,199.32,199.17,1.95]
[1761517207232,2.64,199.27,199.17,1.95]
[1761517211325,3.44553886,199.3,199.17,1.95]
[1761517211636,2.62,199.29,199.17,1.95]
[1761517211828,2.62,199.29,199.18,4.5183]
[1761517212025,2.62,199.29,199.19,1.95]
[1761517212919,6.17083872,199.39,199.21,1.95]
[1761517212920,2.62,199.33,199.21,1.95]
[1761517213233,2.62,199.35,199.21,1.95]
[1761517214130,2.62,199.35,199.25,1.95]
[1761517214630,13.12,199.39,199.19,3.44553886]